fUST/lending_fUST_20250809
["ID","MTS","AMOUNT","RATE_DAILY","PERIOD"]
[378062918,1754715045267,-460.0,0.00022465,2]
[378062919,1754715045278,-460.0,0.00022465,2]
[378062920,1754715045287,-679.16,0.00022465,2]
[378062921,1754715045296,-2784.37,0.00022465,2]
[378062922,1754715045305,-567.31,0.00022465,2]
[378062923,1754715045314,-460.0,0.00022465,2]
[378062924,1754715045324,-4511.74,0.00022465,2]
[378062925,1754715045333,-687.22,0.00022465,2]
[378062926,1754715045342,-460.0,0.00022465,2]
[378062927,1754715045351,-460.0,0.00022465,2]
[378062928,1754715045360,-584.60145566,0.00022465,2]
[378062929,1754715045369,-460.0,0.00022465,2]
[378062930,1754715045378,-460.0,0.00022465,2]
[378062931,1754715045387,-1052.22,0.00022465,2]
[378062932,1754715045396,-460.0,0.00022465,2]
[378062933,1754715045405,-460.0,0.00022465,2]
[378062934,1754715045415,-460.0,0.00022465,2]
[378062935,1754715045424,-460.0,0.00022465,2]
[378062936,1754715045433,-649.98,0.00022465,2]
[378062937,1754715045442,-460.0,0.00022465,2]
[378062938,1754715045451,-460.0,0.00022465,2]
[378062939,1754715045460,-1159.56,0.00022465,2]
[378062940,1754715045470,-1758.51,0.00022465,2]
[378062941,1754715045480,-1865.79,0.00022465,2]
[378062942,1754715045489,-500.0,0.00022473,2]
[378062943,1754715045498,-500.0,0.00022473,2]
[378062944,1754715045509,-507.35793277,0.00022473,2]
[378062945,1754715045521,-501.78237328,0.00022473,2]
[378062946,1754715045535,-500.0,0.00022473,2]
[378062947,1754715045544,-501.22332869,0.00022473,2]
[378062948,1754715045554,-500.0,0.00022473,2]
[378062949,1754715045563,-500.0,0.00022473,2]
[378062950,1754715045573,-151.0,0.00022501,2]
[378062951,1754715045582,-151.0,0.00022501,2]
[378062952,1754715045592,-160.118391,0.00022505,2]
[378062953,1754715045601,-160.0,0.00022617,2]
[378062954,1754715045611,-216.61183532,0.00022618,2]
[378062955,1754715045620,-231.92402426,0.00022618,2]
[378062956,1754715045630,-160.0,0.00022618,2]
[378062957,1754715045639,-160.0,0.00022618,2]
[378062958,1754715045649,-160.0,0.00022618,2]
[378062959,1754715045658,-12666.14847857,0.00022618,2]
[378062960,1754715045668,-842.95011917,0.00022618,2]
[378062961,1754715045678,-312.16666667,0.00022618,2]
[378062962,1754715045687,-215.40758176,0.00022618,2]
[378062963,1754715045697,-160.0,0.00022622,2]
[378062964,1754715045708,-151.0,0.000227,10]
[378062965,1754715045721,-1000.0,0.00022721,2]
[378062966,1754715045732,-460.0,0.00022739,2]
[378062967,1754715045742,-460.0,0.00022739,2]
[378062968,1754715045753,-460.0,0.00022739,2]
[378062969,1754715045763,-460.0,0.00022739,2]
[378062970,1754715045772,-460.0,0.00022739,2]
[378062971,1754715045784,-460.0,0.00022739,2]
[378062972,1754715045793,-460.0,0.00022739,2]
[378062973,1754715045803,-460.0,0.00022739,2]
[378062974,1754715045812,-460.0,0.00022739,2]
[378062975,1754715045823,-460.0,0.00022739,2]
[378062976,1754715045833,-460.0,0.00022739,2]
[378062977,1754715045843,-460.0,0.00022739,2]
[378062978,1754715045853,-598.31,0.00022739,2]
[378062979,1754715045862,-460.0,0.00022739,2]
[378062980,1754715045871,-460.0,0.00022739,2]
[378062981,1754715045880,-460.0,0.00022739,2]
[378062982,1754715045889,-460.0,0.00022739,2]
[378062983,1754715045900,-460.0,0.00022739,2]
[378062984,1754715045909,-460.0,0.00022739,2]
[378062985,1754715045918,-460.0,0.00022739,2]
[378062986,1754715045930,-460.0,0.00022739,2]
[378062987,1754715045939,-460.0,0.00022739,2]
[378062988,1754715045948,-502.82,0.00022739,2]
[378062989,1754715046048,-460.0,0.00022739,2]
[378062990,1754715046058,-460.0,0.00022739,2]
[378062991,1754715046068,-167.89603516,0.00022739,2]
[378062992,1754715046078,-460.0,0.00022739,2]
[378062993,1754715046097,-447.8360474,0.00022739,2]
[378062994,1754715046115,-460.0,0.00022739,2]
[378062995,1754715046125,-460.0,0.00022739,2]
[378062996,1754715046134,-460.0,0.00022739,2]
[378062997,1754715046144,-460.0,0.00022739,2]
[378062998,1754715046153,-219.92921328,0.00022739,2]
[378062999,1754715046162,-460.0,0.00022739,2]
[378063000,1754715046172,-460.0,0.00022739,2]
[378063001,1754715046181,-460.0,0.00022739,2]
[378063003,1754715046190,-460.0,0.00022739,2]
[378063005,1754715046199,-460.0,0.00022739,2]
[378063006,1754715046209,-460.0,0.00022739,2]
[378063007,1754715046218,-357.21387072,0.00022739,2]
[378063008,1754715046228,-460.0,0.00022739,2]
[378063009,1754715046237,-210.4,0.00022739,2]
[378063010,1754715046246,-460.0,0.00022739,2]
[378063011,1754715046256,-709.58,0.00022739,2]
[378063012,1754715046265,-460.0,0.00022739,2]
[378063013,1754715046274,-460.0,0.00022739,2]
[378063015,1754715046284,-460.0,0.00022739,2]
[378063016,1754715046293,-460.0,0.00022739,2]
[378063017,1754715046302,-469.26,0.00022739,2]
[378063018,1754715046311,-460.0,0.00022739,2]
[378063019,1754715046321,-460.0,0.00022739,2]
[378063020,1754715046330,-566.53,0.00022739,2]
[378063021,1754715046340,-460.0,0.00022739,2]
[378063022,1754715046349,-460.0,0.00022739,2]
[378063023,1754715046359,-460.0,0.00022739,2]
[378063024,1754715046369,-566.4,0.00022739,2]
[378063025,1754715046378,-411.20528354,0.00022739,2]
[378063026,1754715046387,-1118.0,0.00022739,2]
[378063027,1754715046397,-460.0,0.00022739,2]
[378063028,1754715046406,-1835.12,0.00022739,2]
[378063029,1754715046415,-460.0,0.00022739,2]
[378063030,1754715046425,-460.0,0.00022739,2]
[378063031,1754715046434,-460.0,0.00022739,2]
[378063032,1754715046444,-460.0,0.00022739,2]
[378063033,1754715046453,-525.62,0.00022739,2]
[378063034,1754715046463,-460.0,0.00022739,2]
[378063035,1754715046473,-460.0,0.00022739,2]
[378063036,1754715046483,-744.74,0.00022739,2]
[378063037,1754715046492,-460.0,0.00022739,2]
[378063038,1754715046502,-460.0,0.00022739,2]
[378063039,1754715046512,-460.0,0.00022739,2]
[378063040,1754715046521,-460.0,0.00022739,2]
[378063041,1754715046532,-693.35,0.00022739,2]
[378063042,1754715046542,-1480.46,0.00022739,2]
[378063043,1754715046551,-460.0,0.00022739,2]
[378063044,1754715046560,-460.0,0.00022739,2]
[378063045,1754715046570,-460.0,0.00022739,2]
[378063046,1754715046580,-460.0,0.00022739,2]
[378063047,1754715046589,-460.0,0.00022739,2]
[378063048,1754715046599,-460.0,0.00022739,2]
[378063049,1754715046608,-460.0,0.00022739,2]
[378063050,1754715046617,-1065.79,0.00022739,2]
[378063051,1754715046627,-514.2,0.00022739,2]
[378063052,1754715046636,-460.0,0.00022739,2]
[378063053,1754715046645,-460.0,0.00022739,2]
[378063054,1754715046654,-1008.02,0.00022739,2]
[378063055,1754715046663,-460.0,0.00022739,2]
[378063056,1754715046672,-491.07,0.00022739,2]
[378063057,1754715046682,-460.0,0.00022739,2]
[378063058,1754715046692,-460.0,0.00022739,2]
[378063059,1754715046704,-460.0,0.00022739,2]
[378063060,1754715046713,-460.0,0.00022739,2]
[378063061,1754715046722,-1381.47,0.00022739,2]
[378063062,1754715046731,-460.0,0.00022739,2]
[378063063,1754715046740,-304.45925288,0.00022739,2]
[378063064,1754715046750,-519.5,0.00022739,2]
[378063065,1754715046761,-460.0,0.00022739,2]
[378063066,1754715046770,-887.95,0.00022739,2]
[378063068,1754715046781,-460.0,0.00022739,2]
[378063070,1754715046790,-460.0,0.00022739,2]
[378063072,1754715046800,-460.0,0.00022739,2]
[378063074,1754715046809,-926.86,0.00022739,2]
[378063075,1754715046819,-829.66,0.00022739,2]
[378063076,1754715046828,-460.0,0.00022739,2]
[378063077,1754715046837,-460.0,0.00022739,2]
[378063078,1754715046846,-1256.8,0.00022739,2]
[378063079,1754715046855,-460.0,0.00022739,2]
[378063080,1754715046865,-460.0,0.00022739,2]
[378063081,1754715046874,-483.00644821,0.00022739,2]
[378063082,1754715046883,-315.58,0.00022739,2]
[378063083,1754715046892,-460.0,0.00022739,2]
[378063084,1754715046902,-460.0,0.00022739,2]
[378063085,1754715046911,-679.16,0.00022739,2]
[378063086,1754715046920,-2784.37,0.00022739,2]
[378063087,1754715046930,-567.31,0.00022739,2]
[378063088,1754715046939,-460.0,0.00022739,2]
[378063089,1754715046948,-4511.74,0.00022739,2]
[378063090,1754715046958,-687.22,0.00022739,2]
[378063091,1754715046967,-460.0,0.00022739,2]
[378063092,1754715046976,-460.0,0.00022739,2]
[378063093,1754715046986,-555.57923295,0.00022739,2]
[378063094,1754715046995,-1052.22,0.00022739,2]
[378063095,1754715047005,-460.0,0.00022739,2]
[378063096,1754715047015,-460.0,0.00022739,2]
[378063097,1754715047024,-460.0,0.00022739,2]
[378063098,1754715047035,-460.0,0.00022739,2]
[378063099,1754715047045,-649.98,0.00022739,2]
[378063100,1754715047054,-460.0,0.00022739,2]
[378063101,1754715047064,-460.0,0.00022739,2]
[378063102,1754715047073,-1159.56,0.00022739,2]
[378063103,1754715047082,-1758.51,0.00022739,2]
[378063104,1754715047091,-503.69426877,0.00022773,2]
[378063105,1754715047101,-500.92627552,0.00022773,2]
[378063106,1754715047110,-500.0,0.00022773,2]
[378063107,1754715047120,-501.83906,0.00022773,2]
[378063108,1754715047129,-500.0,0.00022773,2]
[378063109,1754715047138,-500.0,0.00022773,2]
[378063110,1754715047148,-500.0,0.00022773,2]
[378063111,1754715047157,-500.0,0.00022773,2]
[378063112,1754715047166,-505.06929994,0.00022773,2]
[378063113,1754715047176,-501.97502455,0.00022773,2]
[378063114,1754715047185,-501.02231364,0.00022773,2]
[378063115,1754715047194,-501.64131963,0.00022773,2]
[378063116,1754715047204,-500.0,0.00022773,2]
[378063117,1754715047214,-500.0,0.00022773,2]
[378063118,1754715047223,-501.03349238,0.00022773,2]
[378063119,1754715047232,-440.65131175,0.00022773,2]
[378063120,1754715047241,-500.0,0.00022773,2]
[378063121,1754715047251,-151.0,0.00022775,2]
[378063122,1754715047260,-150.59680682,0.00022978,2]
[378063123,1754715047269,-153.0,0.00022992,2]
[378063124,1754715047279,-153.0,0.00022992,2]
[378063125,1754715047288,-153.0,0.00022993,2]
[378063126,1754715047297,-153.0,0.00022993,2]
[378063127,1754715047306,-153.0,0.00022993,2]
[378063128,1754715047315,-153.0,0.00022993,2]
[378063129,1754715047325,-151.0,0.00023,5]
[378063130,1754715047334,-160.0,0.00023,2]
[378063131,1754715047343,-200.0,0.00023011,15]
[378063132,1754715047352,-300.0,0.00023011,15]
[378063133,1754715047361,-460.0,0.00023013,2]
[378063134,1754715047370,-460.0,0.00023013,2]
[378063135,1754715047380,-460.0,0.00023013,2]
[378063136,1754715047389,-413.77319874,0.00023013,2]
[378063137,1754715047399,-304.96194173,0.00023013,2]
[378063138,1754715047408,-460.0,0.00023013,2]
[378063139,1754715047417,-517.09,0.00023013,2]
[378063140,1754715047427,-460.0,0.00023013,2]
[378063141,1754715047436,-460.0,0.00023013,2]
[378063142,1754715047445,-460.0,0.00023013,2]
[378063143,1754715047454,-460.0,0.00023013,2]
[378063144,1754715047463,-460.0,0.00023013,2]
[378063145,1754715047472,-598.31,0.00023013,2]
[378063146,1754715047482,-460.0,0.00023013,2]
[378063147,1754715047491,-460.0,0.00023013,2]
[378063148,1754715047501,-197.35953287,0.00023013,2]
[378063149,1754715047510,-460.0,0.00023013,2]
[378063150,1754715047520,-460.0,0.00023013,2]
[378063151,1754715047529,-460.0,0.00023013,2]
[378063152,1754715047539,-460.0,0.00023013,2]
[378063153,1754715047550,-460.0,0.00023013,2]
[378063154,1754715047559,-460.0,0.00023013,2]
[378063155,1754715047569,-502.82,0.00023013,2]
[378063156,1754715047579,-460.0,0.00023013,2]
[378063157,1754715047589,-460.0,0.00023013,2]
[378063158,1754715047599,-460.0,0.00023013,2]
[378063159,1754715047609,-460.0,0.00023013,2]
[378063160,1754715047619,-460.0,0.00023013,2]
[378063161,1754715047629,-460.0,0.00023013,2]
[378063162,1754715047639,-473.26572852,0.00023013,2]
[378063163,1754715047649,-460.0,0.00023013,2]
[378063164,1754715047658,-460.0,0.00023013,2]
[378063165,1754715047667,-460.0,0.00023013,2]
[378063166,1754715047676,-460.0,0.00023013,2]
[378063167,1754715047686,-709.58,0.00023013,2]
[378063168,1754715047695,-460.0,0.00023013,2]
[378063169,1754715047708,-273.46392974,0.00023013,2]
[378063170,1754715047718,-460.0,0.00023013,2]
[378063171,1754715047728,-236.5627385,0.00023013,2]
[378063172,1754715047738,-469.26,0.00023013,2]
[378063173,1754715047749,-460.0,0.00023013,2]
[378063174,1754715047760,-460.0,0.00023013,2]
[378063175,1754715047769,-566.53,0.00023013,2]
[378063176,1754715047782,-460.0,0.00023013,2]
[378063177,1754715047791,-460.0,0.00023013,2]
[378063178,1754715047800,-460.0,0.00023013,2]
[378063179,1754715047811,-566.4,0.00023013,2]
[378063180,1754715047820,-1118.0,0.00023013,2]
[378063181,1754715047829,-460.0,0.00023013,2]
[378063182,1754715047839,-1835.12,0.00023013,2]
[378063183,1754715047848,-460.0,0.00023013,2]
[378063184,1754715047857,-460.0,0.00023013,2]
[378063185,1754715047867,-460.0,0.00023013,2]
[378063186,1754715047876,-460.0,0.00023013,2]
[378063187,1754715047887,-525.62,0.00023013,2]
[378063188,1754715047897,-460.0,0.00023013,2]
[378063189,1754715047908,-460.0,0.00023013,2]
[378063190,1754715047917,-744.74,0.00023013,2]
[378063191,1754715047927,-460.0,0.00023013,2]
[378063192,1754715047937,-460.0,0.00023013,2]
[378063193,1754715047947,-460.0,0.00023013,2]
[378063194,1754715047956,-460.0,0.00023013,2]
[378063195,1754715047966,-693.35,0.00023013,2]
[378063196,1754715047976,-1480.46,0.00023013,2]
[378063197,1754715047986,-195.87895631,0.00023013,2]
[378063198,1754715047996,-460.0,0.00023013,2]
[378063199,1754715048006,-460.0,0.00023013,2]
[378063200,1754715048015,-460.0,0.00023013,2]
[378063201,1754715048026,-460.0,0.00023013,2]
[378063202,1754715048038,-460.0,0.00023013,2]
[378063203,1754715048048,-460.0,0.00023013,2]
[378063204,1754715048058,-1065.79,0.00023013,2]
[378063205,1754715048068,-514.2,0.00023013,2]
[378063206,1754715048078,-460.0,0.00023013,2]
[378063207,1754715048088,-460.0,0.00023013,2]
[378063208,1754715048197,-1008.02,0.00023013,2]
[378063209,1754715048207,-460.0,0.00023013,2]
[378063210,1754715048217,-491.07,0.00023013,2]
[378063211,1754715048228,-460.0,0.00023013,2]
[378063212,1754715048238,-238.25475169,0.00023013,2]
[378063213,1754715048247,-460.0,0.00023013,2]
[378063214,1754715048257,-460.0,0.00023013,2]
[378063215,1754715048267,-1381.47,0.00023013,2]
[378063216,1754715048276,-460.0,0.00023013,2]
[378063217,1754715048286,-519.5,0.00023013,2]
[378063218,1754715048296,-887.95,0.00023013,2]
[378063219,1754715048306,-460.0,0.00023013,2]
[378063220,1754715048316,-460.0,0.00023013,2]
[378063221,1754715048325,-344.75791798,0.00023013,2]
[378063222,1754715048335,-460.0,0.00023013,2]
[378063223,1754715048345,-926.86,0.00023013,2]
[378063224,1754715048354,-829.66,0.00023013,2]
[378063225,1754715048364,-460.0,0.00023013,2]
[378063226,1754715048373,-460.0,0.00023013,2]
[378063227,1754715048383,-1119.93215988,0.00023013,2]
[378063228,1754715048641,11884.1029795,0.00031652,30]
[378063229,1754715048684,-1050.93150247,0.00021917,2]
[378063230,1754715048986,-2.841e-05,0.00021917,2]
[378063231,1754715077002,164.33052138,0.0003,120]
[378063530,1754715121687,164.33052138,0.0003,120]
[378063533,1754715179660,584.44247802,0.000199,2]
[378063555,1754715355836,564.96106226,0.000199,2]
[378063556,1754715517208,160.118391,0.00013699,2]
[378063558,1754715533926,2989.42890909,0.000199,2]
[378063567,1754715711296,2889.7812787,0.000199,2]
[378063569,1754715729083,-2889.78127865,0.00021655,2]
[378063570,1754715729113,-2514.29,0.000219,2]
[378063571,1754715729143,-1200.0,0.00021914,2]
[378063572,1754715729174,-300.0,0.00021915,2]
[378063573,1754715729203,-1010.0,0.00021915,2]
[378063574,1754715729232,-4151.0,0.00021915,5]
[378063575,1754715729263,-300.0,0.00021915,2]
[378063576,1754715729292,-2947.0798453,0.00021916,2]
[378063577,1754715729744,-1675.6977521,0.00021916,2]
[378063578,1754715729773,-300.0,0.00021916,2]
[378063579,1754715729801,-486.49632528,0.00021916,2]
[378063580,1754715729831,-500.0,0.00021916,2]
[378063581,1754715729862,-596.40920423,0.00021916,2]
[378063582,1754715742165,182.40459141,0.00021817,2]
[378063583,1754715805403,254.19151651,0.00020913,2]
[378063584,1754715844960,300.0,0.00021916,2]
[378063585,1754715872861,1000.0,0.00021232,2]
[378063586,1754715892683,2798.24086668,0.000199,2]
[378063587,1754715892777,2798.2408666,0.00021655,2]
[378063588,1754715903054,300.0,0.00021916,2]
[378063589,1754715920788,549.4211999,0.00021916,2]
[378063590,1754715929594,3238.43,0.00021907,10]
[378063591,1754715941221,2698.69,0.00021907,10]
[378063592,1754715950684,18616.97706682,0.00021917,2]
[378063593,1754715950710,4795.77397307,0.00021917,2]
[378063594,1754715955772,3673.82,0.00021907,10]
[378063595,1754715963469,300.0,0.00021916,2]
[378063596,1754715964648,10000.0,0.00021169,2]
[378063597,1754715966352,3061.52,0.00021907,10]
[378063598,1754715966928,314.75,0.00031655,30]
[378063599,1754715968753,1676.109182,0.00021817,2]
[378063600,1754715971230,1005.28845265,0.00021916,2]
[378063601,1754715976761,2551.26,0.00021907,10]
[378063602,1754715977705,5236.22839228,0.00021817,2]
[378063603,1754715977727,20072.37363781,0.00021817,2]
[378063604,1754715980582,326.11426211,0.00021916,2]
[378063605,1754715980610,309.35473716,0.00021916,2]
[378063606,1754715987794,5000.0,0.00021917,2]
[378063607,1754715989884,2126.05,0.00021907,10]
[378063608,1754715996848,1200.0,0.00021916,2]
[378063613,1754716001610,1771.71,0.00021907,10]
[378063614,1754716014682,1476.43,0.00021907,10]
[378063615,1754716023487,17.96736292,0.00021916,2]
[378063616,1754716023511,282.03263708,0.00021916,2]
[378063617,1754716025103,1230.35,0.00021907,10]
[378063618,1754716037230,1771.77,0.00021907,10]
[378063619,1754716042575,500.0,0.00021916,2]
[378063620,1754716042606,500.0,0.00021916,2]
[378063621,1754716042638,294.55988167,0.00021916,2]
[378063622,1754716042671,500.0,0.00021916,2]
[378063623,1754716042701,500.0,0.00021916,2]
[378063624,1754716042731,500.0,0.00021916,2]
[378063625,1754716042765,500.0,0.00021916,2]
[378063626,1754716042794,500.0,0.00021916,2]
[378063627,1754716042824,500.0,0.00021916,2]
[378063628,1754716042853,500.0,0.00021916,2]
[378063629,1754716043054,571.47565642,0.00021916,2]
[378063630,1754716043093,500.0,0.00021916,2]
[378063631,1754716043136,500.0,0.00021916,2]
[378063632,1754716043167,500.0,0.00021916,2]
[378063633,1754716043197,500.0,0.00021916,2]
[378063634,1754716043229,572.95838052,0.00021916,2]
[378063635,1754716043258,500.0,0.00021916,2]
[378063636,1754716043286,500.0,0.00021916,2]
[378063637,1754716043323,500.0,0.00021916,2]
[378063638,1754716043352,500.0,0.00021916,2]
[378063639,1754716043383,500.0,0.00021916,2]
[378063640,1754716043416,500.0,0.00021916,2]
[378063641,1754716043444,500.0,0.00021916,2]
[378063642,1754716043476,500.0,0.00021916,2]
[378063643,1754716047617,1476.48,0.00021907,10]
[378063644,1754716060583,1230.4,0.00021907,10]
[378063645,1754716072838,1025.33,0.00021907,10]
[378063646,1754716073996,188.8307332,0.00021169,2]
[378063647,1754716078290,500.0,0.00021917,2]
[378063648,1754716078329,5895.4498921,0.000199,2]
[378063649,1754716078427,5895.4498919,0.00021655,2]
[378063650,1754716078587,277.56475007,0.00021817,2]
[378063651,1754716083406,587.34817704,0.00021907,10]
[378063652,1754716083431,267.09182296,0.00021907,10]
[378063653,1754716083876,300.0,0.00021916,2]
[378063654,1754716090320,31732.90817704,0.000219,2]
[378063655,1754716090344,32300.0,0.000219,2]
[378063656,1754716090366,3013.75182296,0.000219,2]
[378063657,1754716095648,712.03,0.00021907,10]
[378063658,1754716107069,169.46101101,0.00019817,2]
[378063659,1754716108625,593.36,0.00021907,10]
[378063660,1754716117064,500.0,0.00021917,2]
[378063661,1754716119093,494.47,0.00021907,10]
[378063662,1754716120846,203.04195854,0.00021817,2]
[378063663,1754716123210,308.36,0.00021907,3]
[378063664,1754716133889,154.18,0.00021907,3]
[378063665,1754716139134,151.0,0.000219,4]
[378063666,1754716139443,151.0,0.000207,4]
[378063667,1754716139815,151.0,0.000195,2]
[378063668,1754716140152,151.0,0.000183,2]
[378063669,1754716140432,151.0,0.000171,2]
[378063670,1754716140720,151.0,0.000159,2]
[378063671,1754716141020,151.0,0.000146,2]
[378063672,1754716141345,151.0,0.000134,2]
[378063673,1754716141380,24943.34520749,0.00021917,2]
[378063674,1754716141404,13087.4035229,0.00021917,2]
[378063675,1754716141648,151.0,0.000122,2]
[378063676,1754716142030,151.0,0.00011,2]
[378063677,1754716142066,1000.0,0.00021916,2]
[378063678,1754716142335,1000.0,0.00021916,2]
[378063679,1754716142985,412.06,0.00021907,10]
[378063680,1754716143045,300.0,0.00021916,2]
[378063681,1754716144783,462.57,0.00021907,3]
[378063682,1754716154419,500.0,0.00021917,2]
[378063683,1754716154635,343.38,0.00021907,10]
[378063684,1754716157877,7440.84402658,0.00021817,2]
[378063685,1754716160479,151.79739073,0.00021817,2]
[378063688,1754716166744,286.15,0.00021907,10]
[378063689,1754716169674,2000.0,0.00021617,2]
[378063690,1754716169933,2000.0,0.00021617,2]
[378063691,1754716170216,925.73,0.00021617,2]
[378063692,1754716173551,2088.06505979,0.00021139,2]
[378063693,1754716173574,4241.66289291,0.00021139,2]
[378063694,1754716175731,216.05476533,0.00021817,2]
[378063695,1754716178613,238.46,0.00021907,10]
[378063696,1754716184142,277.56475006,0.00021817,2]
[378063697,1754716191228,198.72,0.00021907,10]
[378063698,1754716194976,251.43788568,0.00021898,2]
[378063699,1754716196005,500.0,0.00021917,2]
[378063700,1754716198918,26376.09970602,0.00021139,2]
[378063701,1754716198940,32300.0,0.00021139,2]
[378063702,1754716198962,755.27831058,0.00021139,2]
[378063703,1754716202119,165.6,0.00021907,10]
[378063704,1754716202406,300.0,0.00021916,2]
[378063705,1754716202629,1212.28107229,0.00021917,2]
[378063706,1754716202742,300.0,0.00021916,2]
[378063707,1754716202826,300.0,0.00021916,2]
[378063708,1754716202955,300.0,0.00021916,2]
[378063709,1754716208591,1200.0,0.00021916,2]
[378063710,1754716212342,828.0,0.00021907,10]
[378063715,1754716229548,457.32482035,0.00021817,2]
[378063839,1754716236659,-460.0,0.00021917,2]
[378063841,1754716236673,-11.9644845,0.00021917,2]
[378063981,1754716237964,-448.0355155,0.00021917,2]
[378063983,1754716237974,-460.0,0.00021917,2]
[378063985,1754716237983,-460.0,0.00021917,2]
[378063987,1754716237993,-460.0,0.00021917,2]
[378063989,1754716238003,-460.0,0.00021917,2]
[378063991,1754716238012,-540.58073228,0.00021917,2]
[378063993,1754716238022,-460.0,0.00021917,2]
[378063995,1754716238031,-460.0,0.00021917,2]
[378063997,1754716238042,-460.0,0.00021917,2]
[378063999,1754716238052,-460.0,0.00021917,2]
[378064001,1754716238061,-460.0,0.00021917,2]
[378064004,1754716238071,-460.0,0.00021917,2]
[378064006,1754716238080,-460.0,0.00021917,2]
[378064008,1754716238090,-460.0,0.00021917,2]
[378064010,1754716238099,-460.0,0.00021917,2]
[378064012,1754716238109,-460.0,0.00021917,2]
[378064013,1754716238121,-460.0,0.00021917,2]
[378064015,1754716238130,-460.0,0.00021917,2]
[378064016,1754716238139,-466.1103765,0.00021917,2]
[378064017,1754716238148,-460.0,0.00021917,2]
[378064018,1754716238159,-531.82300881,0.00021917,2]
[378064019,1754716238168,-483.89984403,0.00021917,2]
[378064020,1754716238177,-460.0,0.00021917,2]
[378064021,1754716238190,-460.0,0.00021917,2]
[378064022,1754716238200,-460.0,0.00021917,2]
[378064023,1754716238209,-460.0,0.00021917,2]
[378064024,1754716238218,-460.0,0.00021917,2]
[378064025,1754716238228,-460.0,0.00021917,2]
[378064026,1754716238237,-470.11212147,0.00021917,2]
[378064027,1754716238246,-492.50533123,0.00021917,2]
[378064028,1754716238255,-460.0,0.00021917,2]
[378064029,1754716238265,-460.0,0.00021917,2]
[378064030,1754716238274,-579.98,0.00021917,2]
[378064031,1754716238286,-460.0,0.00021917,2]
[378064032,1754716238297,-460.0,0.00021917,2]
[378064033,1754716238306,-460.0,0.00021917,2]
[378064034,1754716238315,-460.0,0.00021917,2]
[378064035,1754716238324,-460.0,0.00021917,2]
[378064036,1754716238334,-460.0,0.00021917,2]
[378064038,1754716238346,-472.0,0.00021917,2]
[378064040,1754716238356,-460.0,0.00021917,2]
[378064042,1754716238366,-562.43,0.00021917,2]
[378064044,1754716238376,-460.0,0.00021917,2]
[378064046,1754716238386,-460.0,0.00021917,2]
[378064048,1754716238396,-460.0,0.00021917,2]
[378064050,1754716238406,-460.0,0.00021917,2]
[378064052,1754716238416,-460.0,0.00021917,2]
[378064054,1754716238426,-460.0,0.00021917,2]